bitfinex/quotes_BTCUSD_20250830
["timestamp","ask_amount","ask_price","bid_price","bid_amount"]
[1756590429449,0.58399875,108840.0,108830.0,0.52054834]
[1756590429657,0.55736575,108840.0,108830.0,0.52054834]
[1756590431662,0.55736575,108840.0,108830.0,0.51755834]
[1756590431873,0.57174853,108840.0,108830.0,0.31495834]
[1756590432061,0.57174853,108840.0,108830.0,0.46755834]
[1756590432261,0.59938553,108840.0,108830.0,0.51755834]
[1756590432568,0.59938553,108840.0,108830.0,0.46755834]
[1756590432791,0.59938553,108840.0,108830.0,0.51755834]
[1756590434528,0.59938553,108840.0,108830.0,0.42219771]
[1756590434749,0.6191911,108840.0,108830.0,0.42219771]
[1756590435014,0.6191911,108840.0,108780.0,0.24304751]
[1756590435015,0.53299696,108810.0,108780.0,0.05299]
[1756590435225,4.8098971,108800.0,108790.0,0.22328]
[1756590435399,0.21009797,108800.0,108790.0,0.07068]
[1756590435626,0.57775097,108800.0,108790.0,0.22328]
[1756590436051,0.57773781,108800.0,108790.0,0.22328]
[1756590436719,0.57873781,108800.0,108790.0,0.22328]
[1756590438119,0.59312758,108800.0,108790.0,0.22328]
[1756590438956,0.61027851,108800.0,108790.0,0.22328]
[1756590439525,0.6102604,108800.0,108790.0,0.22328]
[1756590441380,0.59045483,108800.0,108790.0,0.22328]
[1756590442380,0.63286696,108800.0,108790.0,0.22328]
[1756590442757,0.81669696,108800.0,108790.0,0.22328]
[1756590444883,0.83642067,108800.0,108790.0,0.22328]
[1756590447501,0.83642067,108800.0,108790.0,0.07068]
[1756590447807,0.83642067,108800.0,108790.0,0.22332]
[1756590450310,0.83636484,108800.0,108790.0,0.22332]
[1756590451094,0.8363649,108800.0,108790.0,0.22332]
[1756590456480,0.8363649,108800.0,108790.0,0.22636]
[1756590458304,0.8363649,108800.0,108790.0,0.07372]
[1756590458505,0.8363649,108800.0,108790.0,0.22332]
[1756590458715,0.8363649,108800.0,108790.0,0.22636]
[1756590460308,0.86101954,108800.0,108790.0,0.22636]
[1756590460752,0.86101954,108800.0,108790.0,0.22844]
[1756590461085,0.86106508,108800.0,108790.0,0.22844]
[1756590461719,0.86107041,108800.0,108790.0,0.22636]
[1756590462283,0.89406633,108800.0,108790.0,0.22636]
[1756590462723,0.89406633,108800.0,108790.0,0.22844]
[1756590463332,0.86941169,108800.0,108790.0,0.22844]
[1756590464334,0.88608243,108800.0,108790.0,0.22844]
[1756590464899,0.88608243,108800.0,108790.0,0.22332]
[1756590465346,0.88608243,108800.0,108790.0,0.22636]
[1756590465786,0.88608243,108800.0,108790.0,0.07068]
[1756590465936,5.51214143,108800.0,108790.0,0.22332]
[1756590467181,5.51214143,108800.0,108790.0,0.22636]
[1756590469287,5.51214143,108800.0,108790.0,0.22835]
[1756590469652,5.51214143,108800.0,108790.0,0.22332]
[1756590470255,5.51214143,108800.0,108790.0,0.22648]
[1756590471680,5.49500417,108800.0,108790.0,0.22332]
[1756590471858,5.51225509,108800.0,108790.0,0.22648]
[1756590473782,5.51225509,108800.0,108790.0,0.22847]
[1756590473986,5.51225509,108800.0,108790.0,0.22648]
[1756590474187,5.51225509,108800.0,108790.0,0.22847]
[1756590474761,5.51225509,108800.0,108790.0,0.22332]
[1756590475408,5.51225562,108800.0,108790.0,0.22847]
[1756590476257,5.51225562,108800.0,108790.0,0.22648]
[1756590476618,5.51225562,108800.0,108790.0,0.22847]
[1756590477874,5.46984349,108800.0,108790.0,0.22332]
[1756590478078,5.46984349,108800.0,108790.0,0.22847]
[1756590478887,5.46984451,108800.0,108790.0,0.22847]
[1756590479351,5.46984451,108800.0,108790.0,0.22648]
[1756590479543,5.46984451,108800.0,108790.0,0.22847]
[1756590481206,5.46984451,108800.0,108790.0,0.07583]
[1756590481416,5.46984451,108800.0,108790.0,0.22847]
[1756590481614,5.46984603,108800.0,108790.0,0.22847]
[1756590488560,5.46984927,108800.0,108790.0,0.22847]
[1756590489203,5.50293987,108800.0,108790.0,0.22847]
[1756590491966,5.49647687,108800.0,108790.0,0.22847]
[1756590492138,5.50294886,108800.0,108790.0,0.22847]
[1756590495814,5.50294927,108800.0,108790.0,0.22847]
[1756590496608,5.50294927,108800.0,108790.0,0.15779]
[1756590501553,5.54404444,108800.0,108790.0,0.15779]
[1756590502839,5.54404438,108800.0,108790.0,0.15779]
[1756590506670,5.5440444,108800.0,108790.0,0.15779]
[1756590509966,5.54404419,108800.0,108790.0,0.15779]
[1756590513422,5.53757828,108800.0,108790.0,0.15779]
[1756590513650,5.54404037,108800.0,108790.0,0.15779]
[1756590514424,5.54404015,108800.0,108790.0,0.15779]
[1756590515867,5.49437349,108800.0,108790.0,0.15779]
[1756590519891,5.26449104,108800.0,108790.0,0.180641]
[1756590520101,5.25621264,108800.0,108790.0,0.180641]
[1756590520770,5.25621264,108800.0,108790.0,0.180601]
[1756590521030,5.44005074,108800.0,108790.0,0.180601]
[1756590524049,5.4400488,108800.0,108790.0,0.180601]
[1756590524294,5.44004803,108800.0,108790.0,0.180601]
[1756590528041,5.44004803,108800.0,108790.0,0.178611]
[1756590528257,5.44004803,108800.0,108790.0,0.180661]
[1756590529912,5.44832643,108800.0,108790.0,0.180661]
[1756590535102,5.44832846,108800.0,108790.0,0.180661]
[1756590539037,5.44832846,108800.0,108790.0,0.178611]
[1756590542403,5.44832846,108800.0,108790.0,0.180711]
[1756590544628,5.44832997,108800.0,108790.0,0.180711]
[1756590546693,5.44832997,108800.0,108790.0,0.15786]
[1756590547954,5.4072348,108800.0,108790.0,0.15786]
[1756590553973,5.4073652,108800.0,108790.0,0.15786]
[1756590555310,5.4073677,108800.0,108790.0,0.15786]
[1756590556109,5.40736772,108800.0,108790.0,0.15786]
[1756590556571,6.29583722,108800.0,108790.0,0.15786]
[1756590560186,6.29583722,108800.0,108790.0,0.22858]
[1756590561841,6.33824107,108800.0,108790.0,0.22858]
[1756590564443,6.33824107,108800.0,108790.0,0.15786]
[1756590565238,6.33824107,108800.0,108790.0,0.180718]
[1756590565438,6.33824107,108800.0,108790.0,0.15786]
[1756590565762,6.32100653,108800.0,108790.0,0.15786]
[1756590565937,6.33824189,108800.0,108790.0,0.15786]
[1756590567016,6.48716672,108800.0,108790.0,0.15786]
[1756590569397,6.48716788,108800.0,108790.0,0.15786]
[1756590574168,0.52384042,108790.0,108780.0,0.07072]
[1756590574395,5.90986892,108790.0,108780.0,0.24306002]
[1756590574605,1.28380992,108790.0,108780.0,0.24306002]
[1756590574789,0.6198657,108790.0,108780.0,0.24832002]
[1756590574995,1.31146192,108790.0,108780.0,0.24832002]
[1756590575645,1.31146192,108790.0,108780.0,0.24932002]
[1756590575852,1.31146192,108790.0,108780.0,0.25032002]
[1756590576401,1.28776245,108790.0,108780.0,0.25032002]
[1756590576607,1.31146186,108790.0,108780.0,0.25032002]
[1756590577440,1.31146188,108790.0,108780.0,0.25032002]
[1756590577841,1.31146188,108790.0,108780.0,0.09776002]
[1756590578047,1.31146188,108790.0,108780.0,0.25032002]
[1756590587194,1.30499841,108790.0,108780.0,0.25032002]
[1756590587321,1.3114623,108790.0,108780.0,0.25032002]
[1756590588144,1.31146231,108790.0,108780.0,0.25032002]
[1756590589209,1.07850745,108790.0,108780.0,0.25032002]
[1756590589408,1.26234787,108790.0,108780.0,0.25032002]
[1756590598061,1.23864801,108790.0,108780.0,0.25032002]
[1756590598274,1.26234757,108790.0,108780.0,0.25032002]
[1756590598655,1.26234752,108790.0,108780.0,0.25032002]
[1756590599066,1.26234744,108790.0,108780.0,0.25032002]
[1756590599262,1.28716714,108790.0,108780.0,0.25032002]
[1756590601448,0.59557092,108790.0,108780.0,0.25032002]
[1756590601655,1.28070371,108790.0,108780.0,0.25032002]
[1756590601867,1.28716717,108790.0,108780.0,0.25032002]
[1756590602068,1.28716717,108790.0,108780.0,0.09776002]
[1756590602285,1.28716717,108790.0,108780.0,0.24819002]
[1756590606565,0.59557095,108790.0,108780.0,0.24819002]
[1756590607071,1.28716717,108790.0,108780.0,0.24819002]
[1756590607593,1.28716717,108790.0,108780.0,0.25029002]
[1756590607842,1.28716672,108790.0,108780.0,0.25029002]
[1756590608028,1.28716659,108790.0,108780.0,0.25029002]
[1756590609255,1.28716659,108790.0,108780.0,0.09773002]
[1756590609465,1.28716659,108790.0,108780.0,0.25029002]
[1756590610638,1.28716659,108790.0,108780.0,0.09773002]
[1756590610836,1.28716659,108790.0,108780.0,0.25029002]
[1756590611473,1.28716686,108790.0,108780.0,0.25029002]
[1756590612446,1.28716833,108790.0,108780.0,0.25029002]
[1756590617737,0.59557211,108790.0,108780.0,0.25029002]
[1756590617897,1.28716833,108790.0,108780.0,0.25029002]
[1756590618310,1.26993251,108790.0,108780.0,0.25029002]
[1756590618515,1.2871729,108790.0,108780.0,0.25029002]
[1756590619313,1.28717298,108790.0,108780.0,0.25029002]
[1756590629127,1.28070833,108790.0,108780.0,0.25029002]
[1756590629329,1.28717368,108790.0,108780.0,0.25029002]
[1756590630193,1.28717372,108790.0,108780.0,0.25029002]
[1756590639994,1.287174,108790.0,108780.0,0.25029002]
[1756590640822,1.28717401,108790.0,108780.0,0.25029002]
[1756590646168,1.32785049,108790.0,108780.0,0.25029002]
[1756590650669,1.32785061,108790.0,108780.0,0.25029002]
[1756590650884,1.32785093,108790.0,108780.0,0.25029002]
[1756590651399,1.32785093,108790.0,108780.0,0.25025002]
[1756590651595,1.32785099,108790.0,108780.0,0.25025002]
[1756590657930,1.32785115,108790.0,108780.0,0.25025002]
[1756590661030,1.31061079,108790.0,108780.0,0.25025002]
[1756590661202,1.32785113,108790.0,108780.0,0.25025002]
[1756590661613,1.32785114,108790.0,108780.0,0.25025002]
[1756590664137,1.32785186,108790.0,108780.0,0.25025002]
[1756590671237,1.3278539,108790.0,108780.0,0.25025002]
[1756590671807,1.32785388,108790.0,108780.0,0.25025002]
[1756590673152,1.2871774,108790.0,108780.0,0.25025002]
[1756590674944,1.28717657,108790.0,108780.0,0.25025002]
[1756590677007,0.94137846,108790.0,108780.0,0.25025002]
[1756590681951,0.9349126,108790.0,108780.0,0.25025002]
[1756590682169,0.941378,108790.0,108780.0,0.25025002]
[1756590685557,0.94139283,108790.0,108780.0,0.25025002]
[1756590687438,0.9413995,108790.0,108780.0,0.25025002]
[1756590689112,0.94139734,108790.0,108780.0,0.25025002]
[1756590689856,0.94139734,108790.0,108780.0,0.30025002]
[1756590690385,0.94139734,108790.0,108780.0,0.29815002]
[1756590690570,0.59559923,108790.0,108780.0,0.29815002]
[1756590690766,0.94139734,108790.0,108780.0,0.30014002]
[1756590692619,0.94140159,108790.0,108780.0,0.30014002]
[1756590694204,0.59560348,108790.0,108780.0,0.30014002]
[1756590694465,0.94140159,108790.0,108780.0,0.30014002]
[1756590702326,0.62569633,108790.0,108780.0,0.30014002]
[1756590702536,0.60087673,108790.0,108780.0,0.30014002]
[1756590703287,0.58362085,108790.0,108780.0,0.30014002]
[1756590703488,0.60088656,108790.0,108780.0,0.30014002]
[1756590706441,0.64252393,108790.0,108780.0,0.30014002]
[1756590707640,0.64252386,108790.0,108780.0,0.30014002]
[1756590708666,0.98252386,108790.0,108780.0,0.30014002]
[1756590712379,1.00734346,108790.0,108780.0,0.30014002]
[1756590712564,1.00734346,108790.0,108780.0,0.14762002]
[1756590712771,1.00734346,108790.0,108780.0,0.30014002]
[1756590713900,0.98360318,108790.0,108780.0,0.30014002]
[1756590714098,1.00735031,108790.0,108780.0,0.30014002]
[1756590716661,1.30847314,108790.0,108780.0,0.30014002]
[1756590716862,1.35323835,108790.0,108780.0,0.30014002]
[1756590723665,1.32949122,108790.0,108780.0,0.30014002]
[1756590723840,1.35323813,108790.0,108780.0,0.30014002]
[1756590734275,1.35323789,108790.0,108780.0,0.30014002]
[1756590734515,1.35323726,108790.0,108780.0,0.30014002]
[1756590735182,1.38632759,108790.0,108780.0,0.30014002]
[1756590736403,1.35323699,108790.0,108780.0,0.30014002]
[1756590739603,1.30847178,108790.0,108780.0,0.30014002]
[1756590739824,1.35323166,108790.0,108780.0,0.30014002]
[1756590742916,1.31159429,108790.0,108780.0,0.30014002]
[1756590745014,1.3051181,108790.0,108780.0,0.30014002]
[1756590745276,1.31158659,108790.0,108780.0,0.14563002]
[1756590745471,1.31158659,108790.0,108780.0,0.29811002]
[1756590746432,0.61999037,108790.0,108780.0,0.29811002]
[1756590746632,1.31158659,108790.0,108780.0,0.29811002]
[1756590752237,1.31158635,108790.0,108780.0,0.29811002]
[1756590753244,0.61999013,108790.0,108780.0,0.30021002]
[1756590753476,1.31158635,108790.0,108780.0,0.30021002]
[1756590753915,1.31058635,108790.0,108780.0,0.30021002]
[1756590755721,1.29332189,108790.0,108780.0,0.30021002]
[1756590756015,1.31058423,108790.0,108780.0,0.30021002]
[1756590759379,1.31058391,108790.0,108780.0,0.30021002]
[1756590764825,1.31058391,108790.0,108780.0,0.29811002]
[1756590764995,1.31058391,108790.0,108780.0,0.30021002]
[1756590766393,1.31058159,108790.0,108780.0,0.30021002]
[1756590767286,1.31058157,108790.0,108780.0,0.30021002]
[1756590772389,1.31058157,108790.0,108780.0,0.29811002]
[1756590772747,1.31058157,108790.0,108780.0,0.30013002]
[1756590773379,1.34367217,108790.0,108780.0,0.30013002]
[1756590773556,1.34367312,108790.0,108780.0,0.30013002]
[1756590777250,1.34367364,108790.0,108780.0,0.30013002]
[1756590780885,1.34367364,108790.0,108780.0,0.29811002]
[1756590781258,1.38576661,108790.0,108780.0,0.30013002]
[1756590782073,1.38576661,108790.0,108780.0,0.14765002]
[1756590782273,1.38576686,108790.0,108780.0,0.30013002]
[1756590783318,1.38576657,108790.0,108780.0,0.30013002]
[1756590785607,1.38576657,108790.0,108780.0,0.14765002]
[1756590785775,1.38576657,108790.0,108780.0,0.30013002]
[1756590786000,1.38576657,108790.0,108780.0,0.14765002]
[1756590786174,1.38576657,108790.0,108780.0,0.30013002]
[1756590786781,1.36850486,108790.0,108780.0,0.30013002]
[1756590786981,1.38576559,108790.0,108780.0,0.30013002]
[1756590793894,1.36850486,108790.0,108780.0,0.30013002]
[1756590794101,1.38576534,108790.0,108780.0,0.30013002]
[1756590797597,1.38576533,108790.0,108780.0,0.30013002]
[1756590798581,1.11731571,108790.0,108780.0,0.30013002]
[1756590798803,1.32880813,108790.0,108780.0,0.30013002]
[1756590801140,1.32880815,108790.0,108780.0,0.30013002]
[1756590808222,1.31154802,108790.0,108780.0,0.30013002]
[1756590808426,1.3288097,108790.0,108780.0,0.30013002]
[1756590808637,1.3536763,108790.0,108780.0,0.30013002]
[1756590809112,1.34720317,108790.0,108780.0,0.30013002]
[1756590809314,1.35367641,108790.0,108780.0,0.30013002]
[1756590811880,1.3536767,108790.0,108780.0,0.30013002]
[1756590812961,1.31158373,108790.0,108780.0,0.30013002]
[1756590815323,1.30511049,108790.0,108780.0,0.30013002]
[1756590815571,1.31158372,108790.0,108780.0,0.30013002]
[1756590819114,1.31158356,108790.0,108780.0,0.30013002]
[1756590819927,1.34467416,108790.0,108780.0,0.30013002]
[1756590829789,1.34467437,108790.0,108780.0,0.30013002]
[1756590840432,1.32741237,108790.0,108780.0,0.30013002]
[1756590840648,1.34467355,108790.0,108780.0,0.30013002]
[1756590843134,1.34467353,108790.0,108780.0,0.30013002]
[1756590845256,1.31158293,108790.0,108780.0,0.30013002]
[1756590845872,1.34467353,108790.0,108780.0,0.30013002]
[1756590846284,1.38667952,108790.0,108780.0,0.30013002]
[1756590850133,1.36294511,108790.0,108780.0,0.30013002]
[1756590850353,1.38667897,108790.0,108780.0,0.30013002]
[1756590850946,1.35358837,108790.0,108780.0,0.30013002]
[1756590851164,1.38667897,108790.0,108780.0,0.30013002]
[1756590853872,1.35358837,108790.0,108780.0,0.30013002]
[1756590854022,1.38667897,108790.0,108780.0,0.30013002]
[1756590855997,0.07127914,108790.0,108780.0,1.02244696]
[1756590856228,0.3676681,108800.0,108780.0,1.20630428]
[1756590856460,0.74110921,108800.0,108790.0,0.005508]
[1756590856657,0.74110921,108800.0,108790.0,0.007608]
[1756590856885,0.3953111,108800.0,108790.0,0.035251]
[1756590857095,0.3953111,108800.0,108790.0,0.12354732]
[1756590857799,0.3676681,108800.0,108790.0,0.70318585]
[1756590857982,0.3676681,108800.0,108790.0,0.72182667]
[1756590858935,0.3676681,108800.0,108790.0,0.53798625]
[1756590860542,0.3676681,108800.0,108790.0,0.54698625]
[1756590863324,0.3676681,108800.0,108790.0,0.80958625]
[1756590867061,0.3676681,108800.0,108790.0,0.54698625]
[1756590868282,0.3676681,108800.0,108790.0,0.20118814]
[1756590868485,0.3676681,108800.0,108790.0,0.54698625]
[1756590872143,0.3676681,108800.0,108790.0,0.80958625]
[1756590873992,0.3676681,108800.0,108790.0,0.99342667]
[1756590877849,0.3676681,108800.0,108790.0,0.46378814]
[1756590878084,0.3676681,108800.0,108790.0,0.80958625]
[1756590878324,0.3848663,108800.0,108790.0,0.80958625]
[1756590878488,0.3848663,108800.0,108790.0,0.96210625]
[1756590879109,0.73066441,108800.0,108790.0,0.61630814]
[1756590881171,0.73066441,108800.0,108790.0,0.83730814]
[1756590882070,0.71346621,108800.0,108790.0,0.83730814]
[1756590882252,0.7306762,108800.0,108790.0,0.83730814]
[1756590883726,0.38487809,108800.0,108790.0,1.02114856]
[1756590883966,0.7306762,108800.0,108790.0,1.02114856]
[1756590884389,0.7371386,108800.0,108790.0,1.02114856]
[1756590886401,0.39134049,108800.0,108790.0,1.02114856]
[1756590886619,0.7371386,108800.0,108790.0,1.02114856]
[1756590888258,0.39134049,108800.0,108790.0,1.02114856]
[1756590889370,0.39139683,108800.0,108790.0,1.02114856]
[1756590891908,0.39139683,108800.0,108790.0,0.83730814]
[1756590892838,0.39139715,108800.0,108790.0,0.83730814]
[1756590893074,0.39139715,108800.0,108790.0,1.02114856]
[1756590895632,0.39139715,108800.0,108790.0,1.09186856]
[1756590902517,0.3914023,108800.0,108790.0,1.09186856]
[1756590902822,0.39140423,108800.0,108790.0,1.09186856]
[1756590903327,0.37414159,108800.0,108790.0,1.09186856]
[1756590903542,0.39140436,108800.0,108790.0,1.09186856]
[1756590903745,0.15180721,108800.0,108790.0,1.09186856]
[1756590910276,0.15180721,108800.0,108790.0,1.06422556]
[1756590913193,0.14533372,108800.0,108790.0,1.06422556]
[1756590913396,0.15181017,108800.0,108790.0,1.06422556]
[1756590918497,0.15181017,108800.0,108790.0,1.41002367]
[1756590922373,0.02373922,108800.0,108790.0,1.41002367]
[1756590922643,0.02373922,108800.0,108790.0,1.43766467]
[1756590923928,0.20755944,108800.0,108790.0,1.43766467]
[1756590924143,0.02373592,108800.0,108790.0,1.43766467]
[1756590924392,0.01726249,108800.0,108790.0,1.43766467]
[1756590930075,0.19299696,108810.0,108800.0,0.02093882]
[1756590930357,0.21870361,108810.0,108800.0,0.26921293]
[1756590930531,0.21870361,108810.0,108800.0,0.26691514]
[1756590931031,0.21223271,108810.0,108800.0,0.26691514]
[1756590931230,0.21870361,108810.0,108800.0,0.26691514]
[1756590931436,0.21870361,108810.0,108800.0,0.26991514]
[1756590931646,0.21672361,108810.0,108800.0,0.27391514]
[1756590932636,0.21672361,108810.0,108800.0,0.34463514]
[1756590934294,0.21672361,108810.0,108800.0,0.60723514]
[1756590934505,0.19299696,108810.0,108800.0,0.60723514]
[1756590934745,0.2167192,108810.0,108800.0,0.60723514]
[1756590935930,0.2186992,108810.0,108800.0,0.60723514]
[1756590936525,0.2186992,108810.0,108800.0,0.79105866]
[1756590941823,0.2167192,108810.0,108800.0,0.79105866]
[1756590945347,0.21671562,108810.0,108800.0,0.79105866]
[1756590946180,0.21671542,108810.0,108800.0,0.79105866]
[1756590948911,0.21671646,108810.0,108800.0,0.79105866]
[1756590951800,0.21671646,108810.0,108800.0,1.01205866]
[1756590952585,0.21672058,108810.0,108800.0,1.01205866]
[1756590955110,0.21672058,108810.0,108800.0,1.01205866]
[1756590956062,0.21672433,108810.0,108800.0,1.01205866]
[1756590964237,0.02372737,108810.0,108800.0,1.40785677]
[1756590964712,0.01725627,108810.0,108800.0,1.84663489]
[1756590965343,0.01725627,108810.0,108800.0,1.50083678]
[1756590965557,0.89316132,108830.0,108820.0,0.02093882]
[1756590965774,0.93874705,108830.0,108820.0,0.52942961]
[1756590965980,0.93874705,108830.0,108820.0,0.53022224]
[1756590966189,0.93874705,108830.0,108820.0,0.53218224]
[1756590966610,0.93874484,108830.0,108820.0,0.53218224]
[1756590966817,0.93879251,108830.0,108820.0,0.53318224]
[1756590967255,0.93879251,108830.0,108820.0,0.53418224]
[1756590967684,0.9387905,108830.0,108820.0,0.53418224]
[1756590969835,0.91891167,108830.0,108820.0,0.53418224]
[1756590972927,0.91891167,108830.0,108820.0,0.53222224]
[1756590973277,0.91891167,108830.0,108820.0,0.53418224]
[1756590975468,0.91891167,108830.0,108820.0,0.53222224]
[1756590976487,0.91889753,108830.0,108820.0,0.53222224]
[1756590976865,0.91889687,108830.0,108820.0,0.53222224]
[1756590977294,0.91889685,108830.0,108820.0,0.53222224]
[1756590981130,0.57309874,108830.0,108820.0,0.53434224]
[1756590981330,0.91889685,108830.0,108820.0,0.53434224]
[1756590982959,0.57309874,108830.0,108820.0,0.53434224]
[1756590983161,0.91889685,108830.0,108820.0,0.53434224]
[1756590984409,0.91243109,108830.0,108820.0,0.53434224]
[1756590984640,0.91889694,108830.0,108820.0,0.53434224]
[1756590985206,0.91889694,108830.0,108820.0,0.53222224]
[1756590985407,0.91889694,108830.0,108820.0,0.53434224]
[1756590985872,0.57309883,108830.0,108820.0,0.53434224]
[1756590986065,0.91889694,108830.0,108820.0,0.53434224]
[1756590986394,0.91691694,108830.0,108820.0,0.53434224]
[1756590986605,0.91889694,108830.0,108820.0,0.53434224]
[1756590987178,0.5711218,108830.0,108820.0,0.53434224]
[1756590987422,0.91889991,108830.0,108820.0,0.53434224]
[1756590987951,0.91889998,108830.0,108820.0,0.53434224]
[1756590993208,0.91691998,108830.0,108820.0,0.53434224]
[1756590994191,0.89967567,108830.0,108820.0,0.53434224]
[1756590994398,0.91692897,108830.0,108820.0,0.53434224]
[1756590994838,0.93680984,108830.0,108820.0,0.53434224]
[1756590995043,0.91692897,108830.0,108820.0,0.53434224]
[1756590995244,0.93680984,108830.0,108820.0,0.53434224]
[1756590997069,0.59101173,108830.0,108820.0,0.58434224]
[1756590997275,0.93680984,108830.0,108820.0,0.58434224]
[1756590997896,0.93682222,108830.0,108820.0,0.58434224]
[1756590998105,0.93682486,108830.0,108820.0,0.58434224]
[1756591008082,0.36957814,108830.0,108820.0,0.58434224]
[1756591008282,0.55338041,108830.0,108820.0,0.58434224]
[1756591008482,0.55338123,108830.0,108820.0,0.58434224]
[1756591008684,0.55338341,108830.0,108820.0,0.58434224]
[1756591008885,0.56257205,108830.0,108820.0,0.58434224]
[1756591009348,0.55609877,108830.0,108820.0,0.58434224]
[1756591009551,0.56257205,108830.0,108820.0,0.58434224]
[1756591013893,0.21677394,108830.0,108820.0,0.58434224]
[1756591014254,0.56257205,108830.0,108820.0,0.58434224]
[1756591017987,0.58245832,108830.0,108820.0,0.58434224]
[1756591019156,0.57598505,108830.0,108820.0,0.58434224]
[1756591019364,0.58245833,108830.0,108820.0,0.58434224]
[1756591019790,0.23666022,108830.0,108820.0,0.58434224]
[1756591022236,0.58245833,108830.0,108820.0,0.58434224]
[1756591028828,0.57598505,108830.0,108820.0,0.58434224]
[1756591029088,0.58245888,108830.0,108820.0,0.58434224]
[1756591030729,0.56257261,108830.0,108820.0,0.61197924]
[1756591030908,0.58245827,108830.0,108820.0,0.61197924]
[1756591032177,0.23666016,108830.0,108820.0,0.61197924]
[1756591033171,0.2167745,108830.0,108820.0,0.61197924]
[1756591036049,0.21677226,108830.0,108820.0,0.61197924]
[1756591039655,0.2102981,108830.0,108820.0,0.61197924]
[1756591039863,0.21677042,108830.0,108820.0,0.61197924]
[1756591040508,0.21875024,108830.0,108820.0,0.60676924]
[1756591042754,0.21875024,108830.0,108820.0,0.61000924]
[1756591045876,0.21875024,108830.0,108820.0,0.58237224]
[1756591046078,0.24638624,108830.0,108820.0,0.58237224]
[1756591047136,0.24638624,108830.0,108820.0,0.58447224]
[1756591050355,0.23991392,108830.0,108820.0,0.58447224]
[1756591050702,0.244406,108830.0,108820.0,0.58447224]
[1756591058398,0.244406,108830.0,108820.0,0.43207224]
[1756591058619,0.244406,108830.0,108820.0,0.58447224]
[1756591058838,0.59218411,108830.0,108820.0,0.58447224]
[1756591059065,0.61206853,108830.0,108820.0,0.58447224]
[1756591059284,0.61206853,108830.0,108820.0,0.57913224]
[1756591059757,0.61206853,108830.0,108820.0,0.58447224]
[1756591059962,0.26627042,108830.0,108820.0,0.58447224]
[1756591060386,0.61206853,108830.0,108820.0,0.58447224]
[1756591060964,0.59480919,108830.0,108820.0,0.58447224]
[1756591061172,0.6120683,108830.0,108820.0,0.58447224]
[1756591061385,0.26429019,108830.0,108820.0,0.58447224]
[1756591061606,0.6100883,108830.0,108820.0,0.58447224]
[1756591065089,0.26429019,108830.0,108820.0,0.58447224]
[1756591065476,0.6100883,108830.0,108820.0,0.58447224]
[1756591065926,0.26429019,108830.0,108820.0,0.58447224]
[1756591068264,0.26428909,108830.0,108820.0,0.58447224]
[1756591070772,0.02101773,108830.0,108820.0,0.58447224]
[1756591071004,0.05784337,108830.0,108820.0,0.58447224]
[1756591071219,0.05784337,108830.0,108820.0,0.61210924]
[1756591071421,0.24164564,108830.0,108820.0,0.61210924]
[1756591071719,0.2075376,108830.0,108820.0,0.61210924]
[1756591071958,0.19946182,108830.0,108820.0,0.61210924]
[1756591072367,0.22709882,108830.0,108820.0,0.61210924]
[1756591073621,0.19946182,108830.0,108820.0,0.61210924]
[1756591074464,0.54525993,108830.0,108820.0,0.61210924]
[1756591075273,0.19946182,108830.0,108820.0,0.61210924]
[1756591081638,0.19946204,108830.0,108820.0,0.61210924]
[1756591082769,0.21671859,108830.0,108820.0,0.61210924]
[1756591083670,0.21671874,108830.0,108820.0,0.61210924]
[1756591088667,0.56251685,108830.0,108820.0,0.61210924]
[1756591090814,0.59015285,108830.0,108820.0,0.61210924]
[1756591092335,0.59015338,108830.0,108820.0,0.61210924]
[1756591103046,0.59015383,108830.0,108820.0,0.61210924]
[1756591103798,0.59015393,108830.0,108820.0,0.61210924]
[1756591105565,0.59212393,108830.0,108820.0,0.61210924]
[1756591108414,0.24435582,108830.0,108820.0,0.61210924]
[1756591108619,0.59015393,108830.0,108820.0,0.61210924]
[1756591113675,0.59015836,108830.0,108820.0,0.61210924]
[1756591113879,0.59015992,108830.0,108820.0,0.61210924]
[1756591114692,0.59015987,108830.0,108820.0,0.61210924]
[1756591116595,0.59015987,108830.0,108820.0,0.83306924]
[1756591124447,0.59015926,108830.0,108820.0,0.83306924]
[1756591125279,0.57289799,108830.0,108820.0,0.83306924]
[1756591125486,0.59015913,108830.0,108820.0,0.83306924]
[1756591125784,0.59015911,108830.0,108820.0,0.83306924]
[1756591128704,0.244361,108830.0,108820.0,0.83306924]
[1756591130024,0.216725,108830.0,108820.0,0.83306924]
[1756591135231,0.21025205,108830.0,108820.0,0.83306924]
[1756591135484,0.21672488,108830.0,108820.0,0.83306924]
[1756591136188,0.21672484,108830.0,108820.0,0.83306924]
[1756591139158,0.56252295,108830.0,108820.0,0.83306924]
[1756591139351,0.21672484,108830.0,108820.0,0.83306924]
[1756591140901,0.56252295,108830.0,108820.0,0.83306924]
[1756591144955,0.54526182,108830.0,108820.0,0.83306924]
[1756591145149,0.56252264,108830.0,108820.0,0.83306924]
[1756591145445,0.55604984,108830.0,108820.0,0.83306924]
[1756591145592,0.56252259,108830.0,108820.0,0.83306924]
[1756591148935,0.36953168,108830.0,108820.0,0.83306924]
[1756591149614,0.55333395,108830.0,108820.0,0.83306924]
[1756591149810,0.56252259,108830.0,108820.0,0.83306924]
[1756591151380,0.56450259,108830.0,108820.0,0.83306924]
[1756591152049,0.56449303,108830.0,108820.0,0.83306924]
[1756591152359,0.56449303,108830.0,108820.0,0.65485582]
[1756591152564,0.91161114,108830.0,108820.0,0.75872]
[1756591152770,1.29912365,108830.0,108820.0,0.75872]
[1756591152981,1.313508,108830.0,108820.0,0.60628]
[1756591153196,6.31736173,108830.0,108820.0,0.53788]
[1756591153408,6.29251178,108830.0,108820.0,0.53788]
[1756591153612,5.94671367,108830.0,108820.0,0.53788]
[1756591153835,5.94671367,108830.0,108820.0,0.27536]
[1756591154238,5.94671367,108830.0,108820.0,0.27544]
[1756591155665,5.94665752,108830.0,108820.0,0.27544]
[1756591155895,5.9251265,108830.0,108820.0,0.302984]
[1756591156144,1.31213255,108830.0,108820.0,0.302984]
[1756591157033,1.31345255,108830.0,108820.0,0.302984]
[1756591159205,1.3121267,108830.0,108820.0,0.302984]
[1756591159407,1.3121267,108830.0,108820.0,0.27544]
[1756591162040,1.3121267,108830.0,108820.0,0.27758]
[1756591162236,1.3101467,108830.0,108820.0,0.28058]
[1756591162441,0.62434859,108830.0,108820.0,0.30151882]
[1756591162645,0.24429192,108830.0,108820.0,0.30151882]
[1756591162833,0.59009003,108830.0,108820.0,0.34457319]
[1756591163860,0.01720714,108830.0,108820.0,0.87416104]
[1756591164068,0.20069157,108840.0,108820.0,0.99277405]
[1756591164189,0.56369434,108840.0,108830.0,0.003]
[1756591164398,0.56369434,108840.0,108830.0,0.00514]
[1756591164605,0.56369434,108840.0,108830.0,0.2261]
[1756591164813,0.56369434,108840.0,108830.0,0.34202932]
[1756591166246,0.5636887,108840.0,108830.0,0.34202932]
[1756591166675,0.5636887,108840.0,108830.0,0.34402932]